bitfinex/quotes_SOLUSD_20250705
["timestamp","ask_amount","ask_price","bid_price","bid_amount"]
[1751689007224,3.84887665,147.75,147.71,34.08]
[1751689007405,5.00449346,147.74,147.71,37.92887665]
[1751689007718,3.84887665,147.76,147.71,37.92887665]
[1751689007927,5.00426821,147.75,147.71,37.92887665]
[1751689008110,5.00426821,147.74,147.71,37.92887665]
[1751689008411,3.84887665,147.76,147.71,37.92887665]
[1751689008614,5.00402283,147.75,147.71,37.92887665]
[1751689008825,5.00402283,147.74,147.71,37.92887665]
[1751689009013,3.84887665,147.76,147.72,6.76956404]
[1751689009213,5.00402586,147.75,147.73,34.08]
[1751689009415,5.00402586,147.74,147.73,34.08]
[1751689010005,5.00402586,147.75,147.73,34.08]
[1751689010204,3.84887665,147.76,147.73,34.08]
[1751689010406,5.00403395,147.75,147.73,34.08]
[1751689010605,3.84887665,147.76,147.73,34.08]
[1751689010908,5.00370436,147.75,147.73,34.08]
[1751689011108,3.84887665,147.76,147.74,6.76864762]
[1751689011310,5.00370739,147.75,147.74,6.76864762]
[1751689031654,5.00370739,147.75,147.74,6.76864762]
[1751689034257,5.00370739,147.75,147.74,10.61752427]
[1751689034456,6.45869049,147.79,147.74,46.18879219]
[1751689034657,0.2,147.79,147.77,3.84887665]
[1751689034861,0.2,147.8,147.79,18.64964886]
[1751689035160,0.2,147.82,147.79,28.0605654]
[1751689035341,0.2,147.82,147.81,29.84887665]
[1751689036377,0.2,147.82,147.81,36.61431877]
[1751689036536,0.2,147.82,147.81,55.26396763]
[1751689039567,1e-08,147.82,147.81,55.4061292]
[1751689040248,1e-08,147.83,147.82,18.64964886]
[1751689040445,1e-08,147.83,147.82,56.57852551]
[1751689040645,1e-08,147.83,147.82,63.34350995]
[1751689040849,1e-08,147.83,147.82,63.48567152]
[1751689045338,1e-08,147.83,147.82,70.40567152]
[1751689048965,1e-08,147.83,147.82,96.26350995]
[1751689050170,1e-08,147.83,147.82,62.20350995]
[1751689050473,1e-08,147.83,147.82,6.76498444]
[1751689050656,1e-08,147.83,147.82,40.82498444]
[1751689051671,1e-08,147.83,147.82,44.67386109]
[1751689051878,1e-08,147.83,147.82,46.82134838]
[1751689052760,1e-08,147.83,147.82,46.84134838]
[1751689062081,1e-08,147.83,147.82,6.76498444]
[1751689062577,1e-08,147.83,147.82,40.82498444]
[1751689062783,5.99636395,147.83,147.81,13.70536723]
[1751689062990,5.99636395,147.83,147.82,34.08]
[1751689064877,5.99636395,147.83,147.81,47.78536723]
[1751689065080,5.99636395,147.83,147.81,13.70536723]
[1751689065280,5.99636395,147.83,147.81,47.78536723]
[1751689067088,5.99636394,147.82,147.76,16.9183058]
[1751689067279,5.99636394,147.8,147.77,6.76727346]
[1751689067487,5.99636394,147.79,147.77,6.76727346]
[1751689067788,5.99636394,147.79,147.77,40.84727346]
[1751689067968,5.99636394,147.8,147.77,40.84727346]
[1751689069787,5.99636394,147.8,147.77,6.76727346]
[1751689069989,5.99636394,147.8,147.77,40.84727346]
[1751689071090,5.99636394,147.79,147.76,6.76773145]
[1751689071288,5.99636394,147.78,147.75,13.70807855]
[1751689071494,5.99636394,147.77,147.75,13.70807855]
[1751689071995,5.99636394,147.78,147.75,13.70807855]
[1751689072668,4.99272576,147.8,147.77,5.99636394]
[1751689072866,17.1873897,147.82,147.77,5.99636394]
[1751689073081,12.19466394,147.82,147.78,34.1]
[1751689073370,4.99542887,147.81,147.79,6.76635766]
[1751689074385,10.99179281,147.81,147.78,40.86667229]
[1751689075473,10.99179281,147.81,147.78,40.88667229]
[1751689077689,4.99542887,147.81,147.78,40.88667229]
[1751689078192,12.19466394,147.82,147.78,40.88667229]
[1751689078490,11.00192998,147.81,147.78,40.88667229]
[1751689078676,5.99636394,147.81,147.78,40.88667229]
[1751689079079,5.00758686,147.8,147.78,40.88667229]
[1751689080682,5.00758686,147.8,147.78,40.86667229]
[1751689081286,5.00758686,147.8,147.78,34.1]
[1751689081486,11.0039508,147.8,147.78,34.1]
[1751689081699,5.99636394,147.8,147.78,34.1]
[1751689082073,11.00251428,147.8,147.78,34.1]
[1751689082385,5.99636394,147.8,147.78,34.1]
[1751689082586,11.00251428,147.8,147.78,34.1]
[1751689082788,5.99636394,147.8,147.78,34.1]
[1751689083107,5.00615034,147.8,147.78,34.1]
[1751689084192,5.00615034,147.8,147.78,40.86675814]
[1751689085185,5.00615034,147.8,147.78,34.1]
[1751689086500,11.00251428,147.8,147.78,34.1]
[1751689086795,5.99636394,147.8,147.78,34.1]
[1751689086998,11.00251428,147.8,147.78,34.1]
[1751689087205,5.99636394,147.8,147.78,34.1]
[1751689087407,11.00251428,147.8,147.77,6.76710668]
[1751689087609,5.99636394,147.8,147.78,34.1]
[1751689087815,11.00251428,147.8,147.78,34.1]
[1751689088015,5.99636394,147.8,147.78,34.1]
[1751689088176,11.00251428,147.8,147.78,34.1]
[1751689088378,5.99636394,147.8,147.78,34.1]
[1751689088694,11.00251428,147.8,147.78,34.1]
[1751689088896,5.99636394,147.8,147.78,34.1]
[1751689089098,11.00251428,147.8,147.78,34.1]
[1751689089312,11.00251428,147.81,147.78,34.1]
[1751689089516,5.00615034,147.8,147.78,34.1]
[1751689090416,5.00615034,147.8,147.78,40.866772]
[1751689091126,5.99636394,147.81,147.78,40.866772]
[1751689091326,5.0079182,147.8,147.78,40.866772]
[1751689091625,5.99636394,147.81,147.77,6.76727346]
[1751689091825,5.00783082,147.8,147.77,40.86727346]
[1751689092028,5.99636394,147.81,147.77,40.86727346]
[1751689092228,5.00697392,147.8,147.77,40.86727346]
[1751689092520,5.99636394,147.81,147.77,40.86727346]
[1751689092724,5.00703772,147.8,147.77,40.86727346]
[1751689092928,5.99636394,147.81,147.77,40.86727346]
[1751689093130,5.00703772,147.8,147.77,40.86727346]
[1751689093303,5.00703772,147.79,147.77,40.86727346]
[1751689093503,5.00703772,147.8,147.77,40.86727346]
[1751689093704,5.00703772,147.79,147.77,40.86727346]
[1751689093922,5.00703772,147.8,147.77,40.86727346]
[1751689094121,5.00703772,147.79,147.77,40.86727346]
[1751689094323,3.84028968,147.81,147.77,40.86727346]
[1751689094518,5.00941288,147.8,147.77,40.86727346]
[1751689094716,5.00941288,147.79,147.77,40.86727346]
[1751689094918,3.84028968,147.81,147.77,40.86727346]
[1751689095127,5.00941288,147.8,147.77,40.86727346]
[1751689095327,5.00941288,147.79,147.77,40.86727346]
[1751689095552,3.84028968,147.81,147.77,40.86727346]
[1751689095844,5.01023282,147.8,147.77,40.86727346]
[1751689096013,5.01023282,147.79,147.77,40.86727346]
[1751689096215,3.84028968,147.81,147.77,40.86727346]
[1751689096434,5.00933127,147.8,147.77,40.86727346]
[1751689096728,5.00933127,147.79,147.78,34.08]
[1751689103446,8.84962095,147.79,147.74,6.94]
[1751689103647,3.84028968,147.77,147.75,6.7681895]
[1751689103826,5.00933127,147.76,147.75,6.7681895]
[1751689104733,8.84962095,147.76,147.74,13.7085538]
[1751689104939,5.00933127,147.75,147.74,47.8085538]
[1751689105623,5.00933127,147.75,147.74,13.7085538]
[1751689105824,5.00933127,147.75,147.74,47.8085538]
[1751689109251,5.00933127,147.75,147.74,41.04]
[1751689109437,8.84962095,147.75,147.74,6.94]
[1751689109639,8.84962095,147.75,147.72,40.8693869]
[1751689109836,5.00933127,147.74,147.72,40.8693869]
[1751689110045,5.00933127,147.73,147.72,40.8693869]
[1751689110339,5.00933127,147.73,147.72,6.7693869]
[1751689110555,5.00933127,147.73,147.72,40.8693869]
[1751689113861,5.00933127,147.73,147.72,34.1]
[1751689114654,3.84028968,147.76,147.72,34.1]
[1751689114854,5.01184122,147.75,147.73,3.84028968]
[1751689115053,5.01184122,147.74,147.73,3.84028968]
[1751689115252,5.01184122,147.74,147.72,37.94028968]
[1751689115582,3.84028968,147.77,147.72,37.94028968]
[1751689115748,5.01106011,147.76,147.72,40.10376947]
[1751689115957,5.01106011,147.75,147.73,6.7691058]
[1751689116148,5.01106011,147.74,147.73,6.7691058]
[1751689117848,5.00967539,147.74,147.73,6.7691058]
[1751689119856,5.00967539,147.74,147.72,40.86937639]
[1751689120057,6.00376947,147.75,147.72,40.86937639]
[1751689120259,5.00839372,147.74,147.72,40.86937639]
[1751689120457,6.00376947,147.75,147.72,40.86937639]
[1751689120656,5.00839372,147.74,147.72,6.76937639]
[1751689120862,6.00376947,147.75,147.72,40.86937639]
[1751689121063,5.00839372,147.74,147.72,40.86937639]
[1751689121270,6.00376947,147.75,147.72,40.86937639]
[1751689121469,5.00813498,147.74,147.72,40.86937639]
[1751689121671,6.00376947,147.75,147.72,40.86937639]
[1751689121865,5.00813634,147.74,147.72,40.86937639]
[1751689122065,6.00376947,147.75,147.72,40.86937639]
[1751689122265,5.00812822,147.74,147.72,40.86937639]
[1751689122467,6.00376947,147.76,147.72,40.86937639]
[1751689122662,5.00795215,147.75,147.72,46.87314586]
[1751689122973,5.00795215,147.74,147.72,46.87314586]
[1751689123161,6.00376947,147.77,147.73,6.00376947]
[1751689123366,5.00783782,147.76,147.73,6.00376947]
[1751689123563,5.00783782,147.75,147.73,6.00376947]
[1751689123776,5.00783782,147.74,147.73,6.00376947]
[1751689124751,5.00783782,147.74,147.73,12.77287527]
[1751689125067,5.00783782,147.74,147.73,46.87287527]
[1751689126574,5.00925479,147.74,147.73,46.87287527]
[1751689128674,5.00925479,147.76,147.73,46.87287527]
[1751689130865,6.00376947,147.78,147.73,46.87287527]
[1751689133080,6.76645551,147.79,147.74,6.00376947]
[1751689133081,6.00376947,147.79,147.74,6.00376947]
[1751689133471,11.01600335,147.78,147.74,34.08]
[1751689133777,5.01223388,147.77,147.74,34.08]
[1751689133984,5.01223388,147.76,147.74,34.08]
[1751689134581,6.00376947,147.78,147.74,40.84819863]
[1751689135470,6.00376947,147.78,147.74,6.76819863]
[1751689135670,6.00376947,147.78,147.74,40.84819863]
[1751689135880,3.84198981,147.78,147.74,40.84819863]
[1751689144184,3.84198981,147.78,147.74,44.69018844]
[1751689145894,5.02094189,147.77,147.74,44.69018844]
[1751689146089,3.84198981,147.78,147.74,44.69018844]
[1751689146296,5.02094077,147.77,147.74,44.69018844]
[1751689146490,5.02094077,147.76,147.74,44.69018844]
[1751689146674,5.02094077,147.75,147.74,44.69018844]
[1751689154404,5.0250858,147.75,147.74,44.69018844]
[1751689155982,3.84198981,147.79,147.74,44.69018844]
[1751689156182,5.02489029,147.78,147.74,44.69018844]
[1751689156404,5.02489029,147.77,147.74,44.69018844]
[1751689156704,5.02489029,147.76,147.74,44.69018844]
[1751689156898,5.02489029,147.75,147.74,44.69018844]
[1751689170798,6.28111286,147.79,147.74,44.69018844]
[1751689171001,5.02729434,147.78,147.76,10.60959778]
[1751689171202,6.28111286,147.79,147.77,34.08]
[1751689171403,5.02748436,147.78,147.77,34.08]
[1751689174124,5.02748436,147.78,147.77,40.84727346]
[1751689175425,5.02748436,147.78,147.77,44.68926327]
[1751689178104,5.02748436,147.78,147.77,40.84727346]
[1751689180120,5.02748436,147.78,147.77,44.68926327]
[1751689181898,5.02748436,147.78,147.77,40.84727346]
[1751689182096,8.86947417,147.78,147.77,34.08]
[1751689182421,8.86947417,147.78,147.75,34.08]
[1751689182590,5.02748436,147.77,147.75,34.08]
[1751689182789,5.02748436,147.76,147.75,34.08]
[1751689183828,5.02748436,147.76,147.75,40.8481895]
[1751689185216,5.02748436,147.76,147.74,10.61056829]
[1751689185418,5.02578819,147.75,147.74,34.08]
[1751689186421,5.02578819,147.75,147.72,10.61155385]
[1751689186422,5.02578819,147.75,147.73,6.76873975]
[1751689186595,3.84198981,147.77,147.74,34.08]
[1751689186791,5.02597138,147.76,147.73,40.84873975]
[1751689187017,5.02597138,147.75,147.73,40.84873975]
[1751689187319,3.84198981,147.77,147.73,40.84873975]
[1751689187520,5.02625843,147.76,147.73,40.84873975]
[1751689187818,5.02625843,147.75,147.73,40.84873975]
[1751689188020,3.84198981,147.77,147.73,40.84873975]
[1751689188202,5.02625843,147.76,147.73,40.84873975]
[1751689188409,5.02625843,147.75,147.73,40.84873975]
[1751689188607,3.84198981,147.77,147.73,40.84873975]
[1751689188813,5.02657185,147.76,147.73,44.69072956]
[1751689189015,5.02657185,147.75,147.73,44.69072956]
[1751689189213,10.12310267,147.78,147.74,3.84198981]
[1751689189403,5.02635318,147.77,147.74,3.84198981]
[1751689189603,5.02635318,147.76,147.74,3.84198981]
[1751689189897,5.02635318,147.75,147.74,3.84198981]
[1751689191098,5.02635318,147.75,147.74,10.61063743]
[1751689193724,5.02635318,147.75,147.74,44.69063743]
[1751689195638,5.02635318,147.75,147.74,6.76864762]
[1751689196009,5.02635318,147.75,147.73,34.08]
[1751689196209,5.02635318,147.74,147.72,3.84198981]
[1751689196430,10.12310267,147.77,147.72,3.84198981]
[1751689196431,5.02635318,147.73,147.72,37.92198981]
[1751689196630,5.02635318,147.73,147.72,44.69155385]
[1751689201635,6.28111286,147.78,147.72,44.69155385]
[1751689201939,5.02432827,147.77,147.74,3.84198981]
[1751689202131,5.02432827,147.76,147.74,37.92198981]
[1751689202432,5.02432827,147.75,147.74,34.08]
[1751689202616,6.28111286,147.79,147.74,34.08]
[1751689202936,5.02482057,147.78,147.74,34.08]
[1751689203131,5.02482057,147.77,147.74,34.08]
[1751689203332,5.02482057,147.76,147.74,34.08]
[1751689203515,6.28111286,147.8,147.74,34.08]
[1751689203839,5.02482208,147.79,147.76,10.60936485]
[1751689204022,5.02482208,147.78,147.76,44.68936485]
[1751689204226,5.02482208,147.77,147.76,44.68936485]
[1751689211854,5.02482208,147.77,147.75,34.06]
[1751689212153,5.02482208,147.76,147.73,44.67109561]
[1751689212350,5.02482208,147.75,147.73,44.67109561]
[1751689212548,5.02482208,147.74,147.73,40.8291058]
[1751689212735,5.02482208,147.74,147.73,44.67109561]
[1751689216552,5.02482208,147.74,147.73,44.69109561]
[1751689217145,10.60911784,147.78,147.73,44.69109561]
[1751689217349,5.02530539,147.77,147.73,44.69109561]
[1751689217652,5.02530539,147.76,147.74,3.84198981]
[1751689217846,5.02530539,147.75,147.74,3.84198981]
[1751689218237,5.02530539,147.75,147.73,40.8491058]
[1751689218437,16.89074958,147.78,147.74,3.84198981]
[1751689218651,5.02516443,147.77,147.74,3.84198981]
[1751689218825,5.02516443,147.76,147.74,3.84198981]
[1751689219027,5.02516443,147.75,147.74,3.84198981]
[1751689219444,5.02516443,147.75,147.74,37.92198981]
[1751689222148,5.02516443,147.75,147.74,44.69063743]
[1751689222537,6.28163174,147.8,147.74,44.69063743]
[1751689222742,5.02644366,147.79,147.78,3.84198981]
[1751689223041,5.02644366,147.79,147.78,37.92198981]
[1751689227155,5.02644366,147.79,147.78,34.08]
[1751689230657,5.02644366,147.79,147.78,37.92198981]
[1751689233236,5.02644366,147.79,147.78,34.08]
[1751689235696,8.86843347,147.79,147.74,3.84198981]
[1751689235956,8.86843347,147.78,147.75,34.06]
[1751689236253,5.02644366,147.77,147.74,40.82850619]
[1751689236460,5.02644366,147.76,147.74,40.82850619]
[1751689236646,5.02644366,147.75,147.74,40.82850619]
[1751689238266,5.02644366,147.75,147.74,44.670496]
[1751689241352,5.02644366,147.75,147.74,10.610496]
[1751689241552,5.02644366,147.75,147.74,44.670496]
[1751689242377,3.84198981,147.79,147.74,10.610496]
[1751689242564,5.02844828,147.78,147.75,34.06]
[1751689242875,5.02844828,147.77,147.75,34.06]
[1751689243076,5.02844828,147.76,147.75,34.06]
[1751689245661,5.02844828,147.76,147.74,44.670496]
[1751689245981,5.02844828,147.75,147.74,44.670496]
[1751689256389,6.28556035,147.79,147.74,44.670496]
[1751689256676,5.03078961,147.78,147.77,3.84198981]
[1751689256875,5.03078961,147.78,147.77,37.90198981]
[1751689257090,32.28556036,147.83,147.77,37.90198981]
[1751689257392,5.03194592,147.82,147.81,3.84198981]
[1751689257891,5.03194592,147.82,147.79,37.90198981]
[1751689258087,5.03194592,147.81,147.79,37.90198981]
[1751689258290,5.03194592,147.8,147.79,44.66834747]
[1751689259995,26.00000001,147.83,147.79,44.66834747]
[1751689260178,5.02848355,147.82,147.79,44.66834747]
[1751689260376,5.02848355,147.81,147.79,44.66834747]
[1751689260676,5.02848355,147.8,147.79,44.66834747]
[1751689265290,1e-08,147.83,147.79,44.66834747]
[1751689265492,5.02731215,147.82,147.81,3.84198981]
[1751689265715,5.02731215,147.82,147.81,34.06]
[1751689268195,5.02731215,147.82,147.8,44.66748938]
[1751689268401,5.02731215,147.81,147.8,44.66748938]
[1751689270595,5.02731215,147.81,147.8,34.06]
[1751689271704,5.02731215,147.81,147.79,40.82617262]
[1751689272003,5.02731215,147.8,147.79,40.82617262]
[1751689272187,5.01832817,147.81,147.79,40.82617262]
[1751689272387,3.84198981,147.82,147.79,40.82617262]
[1751689272588,5.01791722,147.81,147.79,40.82617262]
[1751689272814,3.84198981,147.82,147.79,40.82617262]
[1751689273013,5.01791722,147.81,147.79,40.82617262]
[1751689273226,3.84198981,147.82,147.79,40.82617262]
[1751689273407,5.01766906,147.81,147.79,40.82617262]
[1751689273629,3.84198981,147.82,147.79,40.82617262]
[1751689273810,5.0172419,147.81,147.79,40.82617262]
[1751689274123,3.84198981,147.82,147.79,40.82617262]
[1751689274312,5.0172404,147.81,147.79,40.82617262]
[1751689274511,3.84198981,147.82,147.79,40.82617262]
[1751689274696,5.01684891,147.81,147.79,40.82617262]
[1751689274902,1e-08,147.83,147.79,40.82617262]
[1751689275111,8.85884175,147.82,147.79,40.82617262]
[1751689275302,5.01685194,147.81,147.79,40.82617262]
[1751689275499,3.84198981,147.82,147.79,40.82617262]
[1751689275712,5.01648266,147.81,147.79,40.82617262]
[1751689275907,3.84198982,147.83,147.79,44.66816243]
[1751689276209,5.0164842,147.82,147.79,44.66816243]
[1751689276517,5.0164842,147.81,147.79,44.66816243]
[1751689276719,3.84198982,147.83,147.79,44.66816243]
[1751689276889,5.01614163,147.82,147.79,44.66816243]
[1751689277092,5.01614163,147.81,147.79,44.66816243]
[1751689277292,3.84198982,147.83,147.79,44.66816243]
[1751689277592,5.0158226,147.82,147.79,44.66816243]
[1751689277808,5.0158226,147.81,147.79,44.66816243]
[1751689278026,3.84198982,147.83,147.79,44.66816243]
[1751689278205,5.0158226,147.82,147.79,44.66816243]
[1751689278409,5.0158226,147.81,147.79,44.66816243]
[1751689278609,5.0158226,147.82,147.79,44.66816243]
[1751689278809,5.0158226,147.81,147.79,44.66816243]
[1751689279003,5.0158226,147.82,147.79,44.66816243]
[1751689279206,5.0158226,147.81,147.79,10.60816243]
[1751689279430,5.0158226,147.82,147.79,44.66816243]
[1751689279596,5.0158226,147.81,147.79,44.66816243]
[1751689279796,5.0158226,147.82,147.79,44.66816243]
[1751689279997,5.0158226,147.81,147.79,44.66816243]
[1751689280213,5.0158226,147.82,147.79,44.66816243]
[1751689280417,5.0158226,147.81,147.79,44.66816243]
[1751689280624,5.0158226,147.82,147.79,44.66816243]
[1751689280832,5.0158226,147.81,147.79,44.66816243]
[1751689281126,5.0158226,147.82,147.79,44.66816243]
[1751689281304,5.0158226,147.81,147.79,44.66816243]
[1751689281501,5.0158226,147.82,147.79,44.66816243]
[1751689281703,5.0158226,147.81,147.79,44.66816243]
[1751689281902,5.0158226,147.82,147.79,44.66816243]
[1751689282204,5.0158226,147.81,147.79,44.66816243]
[1751689282401,5.0158226,147.82,147.79,44.66816243]
[1751689282726,5.0158226,147.81,147.79,44.66816243]
[1751689282928,5.0158226,147.82,147.79,44.66816243]
[1751689283104,5.0158226,147.81,147.79,44.66816243]
[1751689283304,5.0158226,147.82,147.79,44.66816243]
[1751689283519,5.0158226,147.81,147.79,44.66816243]
[1751689283711,5.0158226,147.82,147.79,44.66816243]
[1751689283917,1e-08,147.83,147.8,3.84198981]
[1751689284100,5.01912871,147.82,147.81,3.84198981]
[1751689284301,1e-08,147.83,147.81,3.84198981]
[1751689284604,1e-08,147.83,147.82,3.84198981]
[1751689285815,1e-08,147.83,147.82,12.76062109]
[1751689286402,1e-08,147.83,147.81,34.06]
[1751689286598,1e-08,147.83,147.8,46.8212265]
[1751689288513,1e-08,147.83,147.8,12.7612265]
[1751689288714,1e-08,147.83,147.8,46.8212265]
[1751689289752,1e-08,147.83,147.8,40.82558985]
[1751689289907,1e-08,147.83,147.8,46.8212265]
[1751689294911,1e-08,147.83,147.81,12.76083216]
[1751689295429,1e-08,147.83,147.81,6.76519551]
[1751689298321,5.02496918,147.82,147.81,6.76519551]
[1751689299028,5.02599586,147.82,147.81,6.76519551]
[1751689300052,1e-08,147.83,147.79,6.76635766]
[1751689300217,11.0243046,147.82,147.79,6.76635766]
[1751689300536,5.02866795,147.81,147.79,6.76635766]
[1751689300712,5.02866795,147.8,147.79,6.76635766]
[1751689302733,5.03312349,147.8,147.79,6.76635766]
[1751689306415,5.03312349,147.8,147.78,6.76680181]
[1751689306618,5.03312349,147.79,147.78,6.76680181]
[1751689308441,5.03348234,147.79,147.78,6.76680181]
[1751689312663,5.03348234,147.79,147.77,10.60697213]
[1751689312950,5.03163701,147.78,147.75,41.0]
[1751689313162,3.8397831,147.79,147.75,6.94]
[1751689313338,3.8397831,147.79,147.75,41.0]
[1751689313339,5.03144973,147.78,147.75,41.0]
[1751689313523,3.8397831,147.79,147.75,6.94]
[1751689313723,5.0304389,147.78,147.75,44.8397831]
[1751689314048,3.8397831,147.79,147.75,51.60783012]
[1751689314216,5.03071143,147.78,147.75,51.60783012]
[1751689314416,3.8397831,147.79,147.75,51.60783012]
[1751689314646,5.02979838,147.78,147.75,51.60783012]
[1751689314849,3.8397831,147.79,147.75,17.54783012]
[1751689315049,5.02979988,147.78,147.75,17.54783012]
[1751689315343,3.8397831,147.79,147.75,17.54783012]
[1751689315534,5.02897545,147.78,147.75,17.54783012]
[1751689315734,3.8397831,147.79,147.75,17.54783012]
[1751689316040,5.02897545,147.78,147.75,17.54783012]
[1751689316224,3.98194467,147.81,147.76,3.8397831]
[1751689316428,5.02898454,147.8,147.78,3.8397831]
[1751689316639,5.02898454,147.79,147.78,3.8397831]
[1751689318057,5.02898454,147.79,147.78,10.60659863]
[1751689319750,5.02898454,147.79,147.78,5.99927074]
[1751689321454,5.02898454,147.79,147.78,12.76608627]
[1751689321755,5.02898454,147.82,147.78,12.76608627]
[1751689321957,1e-08,147.83,147.81,5.99927074]
[1751689322121,5.02740353,147.82,147.81,5.99927074]
[1751689325266,5.02740353,147.82,147.81,12.76471286]
[1751689326978,1e-08,147.83,147.81,12.76471286]
[1751689327145,1e-08,147.83,147.82,5.99927074]
[1751689327328,5.02786088,147.83,147.82,5.99927074]
[1751689327537,1e-08,147.83,147.82,12.76425518]
[1751689328660,5.02756313,147.83,147.82,12.76425518]
[1751689328852,1e-08,147.83,147.82,12.76425518]
[1751689329053,5.02756313,147.83,147.82,12.76425518]
[1751689329258,1e-08,147.83,147.82,12.76425518]
[1751689330861,5.02706747,147.83,147.82,12.76425518]
[1751689331053,1e-08,147.83,147.82,12.76425518]
[1751689331237,5.02706747,147.83,147.82,12.76425518]
[1751689331434,1e-08,147.83,147.82,12.76425518]
[1751689331663,5.02706747,147.83,147.82,12.76425518]
[1751689331964,1e-08,147.83,147.82,12.76425518]
[1751689332135,5.02706747,147.83,147.82,12.76425518]
[1751689332337,1e-08,147.83,147.82,12.76425518]
[1751689332565,5.02706747,147.83,147.82,12.76425518]
[1751689332748,1e-08,147.83,147.82,12.76425518]
[1751689333052,5.02706747,147.83,147.82,12.76425518]
[1751689333439,1e-08,147.83,147.82,12.76425518]
[1751689333665,5.02706747,147.83,147.82,12.76425518]
[1751689333846,1e-08,147.83,147.82,12.76425518]
[1751689334046,5.02706747,147.83,147.82,12.76425518]
[1751689334247,1e-08,147.83,147.82,12.76425518]
[1751689334450,5.02706747,147.83,147.82,12.76425518]
[1751689334650,1e-08,147.83,147.82,12.76425518]
[1751689334853,5.02706747,147.83,147.82,12.76425518]
[1751689335071,1e-08,147.83,147.82,12.76425518]
[1751689335364,5.02706747,147.83,147.82,12.76425518]
[1751689335564,1e-08,147.83,147.82,12.76425518]
[1751689335768,5.02706747,147.83,147.82,12.76425518]
[1751689336067,1e-08,147.83,147.82,12.76425518]
[1751689336365,5.02706747,147.83,147.82,12.76425518]
[1751689336565,1e-08,147.83,147.82,12.76425518]
[1751689336752,5.02706747,147.83,147.82,12.76425518]
[1751689336949,1e-08,147.83,147.82,12.76425518]
[1751689337160,5.02706747,147.83,147.82,12.76425518]
[1751689337362,1e-08,147.83,147.82,12.76425518]
[1751689337554,5.02706747,147.83,147.82,12.76425518]
[1751689337754,1e-08,147.83,147.82,12.76425518]
[1751689338054,5.02706747,147.83,147.82,12.76425518]
[1751689341772,5.02706747,147.83,147.82,3.83742544]
[1751689342456,1e-08,147.83,147.82,3.83742544]
[1751689343466,1e-08,147.83,147.82,10.60240988]
[1751689363486,5.03727488,147.83,147.82,10.60240988]
[1751689365865,5.03727488,147.83,147.82,6.76498444]
[1751689366065,5.03727488,147.83,147.82,10.60240988]
[1751689368593,5.03727488,147.83,147.82,6.76498444]
[1751689368770,5.03727488,147.83,147.82,10.60240988]
[1751689371105,5.03727488,147.83,147.82,6.76498444]
[1751689371273,5.03727488,147.83,147.82,10.60240988]
[1751689371992,5.03727488,147.83,147.78,6.92]
[1751689371993,15.16655324,147.83,147.78,6.92]
[1751689372295,8.87470031,147.82,147.79,34.04]
[1751689372479,5.03727487,147.81,147.79,34.04]
[1751689372795,5.03727487,147.8,147.79,34.04]
[1751689373109,5.03727487,147.8,147.79,6.76635766]
[1751689375482,5.03727487,147.8,147.78,6.92]
[1751689375683,5.03727487,147.79,147.78,6.92]
[1751689376085,5.03727487,147.79,147.77,40.80695932]
[1751689376284,5.03727487,147.78,147.77,40.80695932]
[1751689378499,3.83742544,147.81,147.77,40.80695932]
[1751689378674,5.03418975,147.8,147.77,40.80695932]
[1751689378872,5.03418975,147.79,147.77,40.80695932]
[1751689379170,3.83742544,147.81,147.77,40.80695932]
[1751689379373,5.03418825,147.8,147.77,40.80695932]
[1751689379574,5.03418825,147.79,147.77,40.80695932]
[1751689379771,3.83742544,147.81,147.77,40.80695932]
[1751689379990,5.03285275,147.8,147.77,40.80695932]
[1751689380301,5.03285275,147.79,147.77,40.80695932]
[1751689380494,3.83742544,147.81,147.77,40.80695932]
[1751689380696,5.03265068,147.8,147.77,40.80695932]
[1751689380891,5.03265068,147.79,147.77,6.76695932]
[1751689381094,3.83742544,147.81,147.77,40.80695932]
[1751689381388,5.03298228,147.8,147.77,40.80695932]
[1751689381588,5.03298228,147.79,147.77,40.80695932]
[1751689381900,3.83742544,147.81,147.77,44.64438476]
[1751689382080,5.03178915,147.8,147.77,44.64438476]
[1751689382280,5.03178915,147.79,147.77,44.64438476]
[1751689382475,3.83742544,147.81,147.77,44.64438476]
[1751689382679,5.03123846,147.8,147.77,44.64438476]
[1751689382892,5.03123846,147.79,147.77,44.64438476]
[1751689383095,5.03175666,147.8,147.78,10.6039832]
[1751689383397,1e-08,147.83,147.79,37.87742544]
[1751689383603,1e-08,147.83,147.79,34.04]
[1751689383604,5.03111357,147.82,147.79,34.04]
[1751689383805,1e-08,147.83,147.81,3.83742544]
[1751689383991,1e-08,147.83,147.82,3.83742544]
[1751689384191,5.03179326,147.83,147.82,3.83742544]
[1751689388805,5.03179326,147.83,147.81,10.60277223]
[1751689389007,5.03179325,147.82,147.81,10.60277223]